[Event "Titled Tuesday Blitz October 04 Late 2022"]
[White "Sorokin, Aleksey"]
[Black "Vasquez Schroeder, Rodrigo"]
[WhiteFideId "24176460"]
[BlackFideId "3400042"]
[WhiteElo "2476"]
[BlackElo "2577"]
[Result "0-1"]
[Round "09"]
[TimeControl "180+1"]
[Date "2022.10.04"]
[WhiteClock "0:00:06"]
[BlackClock "0:00:25"]

1. e4 {[%clk 0:03:00]}  c5 {[%clk 0:02:58]} 2. Nf3 {[%clk 0:02:59]}  d6 {[%clk 0:02:58]} 3. Bb5+ {[%clk 0:02:58]}  Nd7 {[%clk 0:02:57]} 4. Ba4 {[%clk 0:02:58]}  Nf6 {[%clk 0:02:55]} 5. O-O {[%clk 0:02:58]}  a6 {[%clk 0:02:53]} 6. Re1 {[%clk 0:02:53]}  b5 {[%clk 0:02:46]} 7. Bb3 {[%clk 0:02:50]}  c4 {[%clk 0:02:44]} 8. Bxc4 {[%clk 0:02:49]}  bxc4 {[%clk 0:02:44]} 9. Qe2 {[%clk 0:02:48]}  Qc7 {[%clk 0:02:44]} 10. Na3 {[%clk 0:02:47]}  Nb6 {[%clk 0:02:43]} 11. e5 {[%clk 0:02:46]}  dxe5 {[%clk 0:02:43]} 12. Nxe5 {[%clk 0:02:47]}  Be6 {[%clk 0:02:42]} 13. b3 {[%clk 0:02:45]}  cxb3 {[%clk 0:02:38]} 14. axb3 {[%clk 0:02:46]}  g6 {[%clk 0:02:37]} 15. c4 {[%clk 0:02:46]}  Bg7 {[%clk 0:02:35]} 16. d4 {[%clk 0:02:46]}  O-O {[%clk 0:02:35]} 17. d5 {[%clk 0:02:41]}  Bf5 {[%clk 0:02:31]} 18. Bf4 {[%clk 0:02:40]}  Nh5 {[%clk 0:02:24]} 19. Bd2 {[%clk 0:02:37]}  e6 {[%clk 0:02:17]} 20. Bb4 {[%clk 0:02:04]}  exd5 {[%clk 0:02:09]} 21. Bxf8 {[%clk 0:02:03]}  Rxf8 {[%clk 0:02:07]} 22. c5 {[%clk 0:01:42]}  Qxc5 {[%clk 0:02:00]} 23. Qxa6 {[%clk 0:01:42]}  Ra8 {[%clk 0:01:51]} 24. Qb7 {[%clk 0:00:59]}  Bxe5 {[%clk 0:01:39]} 25. Rxe5 {[%clk 0:00:57]}  Rxa3 {[%clk 0:01:36]} 26. Rae1 {[%clk 0:00:52]}  Ra2 {[%clk 0:01:32]} 27. R5e3 {[%clk 0:00:52]}  Nf6 {[%clk 0:01:23]} 28. h3 {[%clk 0:00:47]}  Ne4 {[%clk 0:01:20]} 29. Qb8+ {[%clk 0:00:42]}  Kg7 {[%clk 0:01:18]} 30. g4 {[%clk 0:00:39]}  Be6 {[%clk 0:01:02]} 31. Qe5+ {[%clk 0:00:39]}  Kg8 {[%clk 0:01:02]} 32. b4 {[%clk 0:00:22]}  Qc2 {[%clk 0:00:39]} 33. R3e2 {[%clk 0:00:19]}  Qxe2 {[%clk 0:00:39]} 34. Rxe2 {[%clk 0:00:19]}  Rxe2 {[%clk 0:00:39]} 35. b5 {[%clk 0:00:18]}  Nc4 {[%clk 0:00:39]} 36. Qb8+ {[%clk 0:00:16]}  Kg7 {[%clk 0:00:39]} 37. b6 {[%clk 0:00:16]}  Rb2 {[%clk 0:00:36]} 38. b7 {[%clk 0:00:16]}  Nc5 {[%clk 0:00:36]} 39. Qf4 {[%clk 0:00:12]}  Nxb7 {[%clk 0:00:33]} 40. Qd4+ {[%clk 0:00:11]}  Kg8 {[%clk 0:00:33]} 41. g5 {[%clk 0:00:11]}  Rb1+ {[%clk 0:00:32]} 42. Kh2 {[%clk 0:00:11]}  Nbd6 {[%clk 0:00:31]} 43. h4 {[%clk 0:00:10]}  Nf5 {[%clk 0:00:31]} 44. Qf6 {[%clk 0:00:11]}  Ncd6 {[%clk 0:00:32]} 45. Qd8+ {[%clk 0:00:10]}  Kg7 {[%clk 0:00:32]} 46. Qf6+ {[%clk 0:00:10]}  Kf8 {[%clk 0:00:33]} 47. h5 {[%clk 0:00:10]}  gxh5 {[%clk 0:00:32]} 48. Qh8+ {[%clk 0:00:09]}  Ke7 {[%clk 0:00:32]} 49. Qxh7 {[%clk 0:00:10]}  Rb2 {[%clk 0:00:30]} 50. Kg1 {[%clk 0:00:09]}  Ne4 {[%clk 0:00:29]} 51. g6 {[%clk 0:00:08]}  Nf6 {[%clk 0:00:29]} 52. Qh8 {[%clk 0:00:05]}  fxg6 {[%clk 0:00:29]} 53. Qa8 {[%clk 0:00:04]}  Rb1+ {[%clk 0:00:27]} 54. Kg2 {[%clk 0:00:04]}  Kf7 {[%clk 0:00:27]} 55. Qa7+ {[%clk 0:00:04]}  Ne7 {[%clk 0:00:28]} 56. Qe3 {[%clk 0:00:04]}  Rb4 {[%clk 0:00:28]} 57. Qe5 {[%clk 0:00:04]}  Rg4+ {[%clk 0:00:28]} 58. Kh2 {[%clk 0:00:04]}  Re4 {[%clk 0:00:28]} 59. Qb2 {[%clk 0:00:04]}  Ng4+ {[%clk 0:00:28]} 60. Kg3 {[%clk 0:00:04]}  Re5 {[%clk 0:00:28]} 61. f3 {[%clk 0:00:04]}  Nf5+ {[%clk 0:00:28]} 62. Kf4 {[%clk 0:00:05]}  g5+ {[%clk 0:00:24]} 63. Kxg5 {[%clk 0:00:05]}  Nd4+ {[%clk 0:00:24]} 64. Kh4 {[%clk 0:00:04]}  Nxf3+ {[%clk 0:00:24]} 65. Kg3 {[%clk 0:00:04]}  Ng5 {[%clk 0:00:24]} 66. Kf4 {[%clk 0:00:04]}  Kg6 {[%clk 0:00:24]} 67. Qd2 {[%clk 0:00:04]}  Rf5+ {[%clk 0:00:24]} 68. Kg3 {[%clk 0:00:04]}  Ne4+ {[%clk 0:00:25]} 69. Kh3 {[%clk 0:00:05]}  Nxd2 {[%clk 0:00:24]} 70. Kh4 {[%clk 0:00:06]}  Nf3+ {[%clk 0:00:25]} 0-1


[Site "https://www.chess.com"]

[Event "Titled Tuesday Blitz October 04 Late 2022"]
[White "Timmermans, Mark"]
[Black "Preotu, Razvan"]
[WhiteFideId "1026399"]
[BlackFideId "2613280"]
[WhiteElo "2460"]
[BlackElo "2407"]
[Result "0-1"]
[Round "09"]
[TimeControl "180+1"]
[Date "2022.10.04"]
[WhiteClock "0:00:30"]
[BlackClock "0:00:05"]

1. Nf3 {[%clk 0:03:00]}  c5 {[%clk 0:02:57]} 2. e4 {[%clk 0:02:58]}  d6 {[%clk 0:02:57]} 3. d4 {[%clk 0:02:57]}  cxd4 {[%clk 0:02:57]} 4. Nxd4 {[%clk 0:02:58]}  Nf6 {[%clk 0:02:58]} 5. Nc3 {[%clk 0:02:53]}  a6 {[%clk 0:02:58]} 6. Be3 {[%clk 0:02:44]}  e5 {[%clk 0:02:57]} 7. Nb3 {[%clk 0:02:43]}  Be6 {[%clk 0:02:57]} 8. f3 {[%clk 0:02:43]}  h5 {[%clk 0:02:56]} 9. Nd5 {[%clk 0:02:43]}  Bxd5 {[%clk 0:02:54]} 10. exd5 {[%clk 0:02:44]}  Nbd7 {[%clk 0:02:54]} 11. Qd2 {[%clk 0:02:41]}  g6 {[%clk 0:02:53]} 12. c4 {[%clk 0:02:38]}  Bg7 {[%clk 0:02:44]} 13. Be2 {[%clk 0:02:33]}  b6 {[%clk 0:02:43]} 14. O-O {[%clk 0:02:31]}  O-O {[%clk 0:02:42]} 15. Rac1 {[%clk 0:02:28]}  Kh7 {[%clk 0:02:21]} 16. Kh1 {[%clk 0:02:20]}  Ng8 {[%clk 0:02:21]} 17. Na1 {[%clk 0:02:18]}  Bh6 {[%clk 0:02:20]} 18. b4 {[%clk 0:02:16]}  a5 {[%clk 0:02:09]} 19. a3 {[%clk 0:02:13]}  axb4 {[%clk 0:02:08]} 20. axb4 {[%clk 0:02:14]}  Bxe3 {[%clk 0:01:54]} 21. Qxe3 {[%clk 0:02:13]}  Ne7 {[%clk 0:01:50]} 22. Nb3 {[%clk 0:02:11]}  Nf5 {[%clk 0:01:49]} 23. Qd2 {[%clk 0:02:03]}  Qh4 {[%clk 0:01:37]} 24. Kg1 {[%clk 0:01:58]}  Ra3 {[%clk 0:01:37]} 25. Qb2 {[%clk 0:01:57]}  Rfa8 {[%clk 0:01:37]} 26. Ra1 {[%clk 0:01:57]}  Rxa1 {[%clk 0:01:31]} 27. Rxa1 {[%clk 0:01:58]}  Rxa1+ {[%clk 0:01:30]} 28. Qxa1 {[%clk 0:01:59]}  Qf4 {[%clk 0:01:26]} 29. Qc1 {[%clk 0:01:55]}  Nd4 {[%clk 0:01:26]} 30. Bd1 {[%clk 0:01:50]}  Qh4 {[%clk 0:01:13]} 31. Qc3 {[%clk 0:01:14]}  Nxb3 {[%clk 0:00:29]} 32. Bxb3 {[%clk 0:01:15]}  Qg5 {[%clk 0:00:24]} 33. g3 {[%clk 0:00:52]}  h4 {[%clk 0:00:24]} 34. Kf2 {[%clk 0:00:52]}  Nf6 {[%clk 0:00:23]} 35. Qe3 {[%clk 0:00:50]}  Qf5 {[%clk 0:00:23]} 36. Qxb6 {[%clk 0:00:47]}  Ng4+ {[%clk 0:00:21]} 37. Kg2 {[%clk 0:00:43]}  h3+ {[%clk 0:00:20]} 38. Kf1 {[%clk 0:00:31]}  Qxf3+ {[%clk 0:00:20]} 39. Ke1 {[%clk 0:00:31]}  Qxb3 {[%clk 0:00:16]} 40. Qxd6 {[%clk 0:00:28]}  Qe3+ {[%clk 0:00:06]} 41. Kd1 {[%clk 0:00:28]}  Nxh2 {[%clk 0:00:06]} 42. Qf6 {[%clk 0:00:28]}  Qf3+ {[%clk 0:00:03]} 43. Qxf3 {[%clk 0:00:28]}  Nxf3 {[%clk 0:00:04]} 44. d6 {[%clk 0:00:29]}  h2 {[%clk 0:00:04]} 45. d7 {[%clk 0:00:30]}  h1=Q+ {[%clk 0:00:04]} 46. Kc2 {[%clk 0:00:30]}  Nd4+ {[%clk 0:00:04]} 47. Kb2 {[%clk 0:00:30]}  Qa8 {[%clk 0:00:05]} 48. c5 {[%clk 0:00:29]}  Qd8 {[%clk 0:00:05]} 49. c6 {[%clk 0:00:30]}  Nxc6 {[%clk 0:00:05]} 0-1


[Site "https://www.chess.com"]

[Event "Titled Tuesday Blitz October 04 Late 2022"]
[White "Aldokhin, Ivan"]
[Black "Harvey, Marcus R"]
[WhiteFideId "24115720"]
[BlackFideId "400092"]
[WhiteElo "2313"]
[BlackElo "2457"]
[Result "0-1"]
[Round "10"]
[TimeControl "180+1"]
[Date "2022.10.04"]
[WhiteClock "0:00:02"]
[BlackClock "0:00:33"]

1. e4 {[%clk 0:02:59]}  c6 {[%clk 0:02:55]} 2. Nc3 {[%clk 0:02:58]}  d5 {[%clk 0:02:56]} 3. d4 {[%clk 0:02:57]}  dxe4 {[%clk 0:02:55]} 4. Nxe4 {[%clk 0:02:57]}  Nf6 {[%clk 0:02:55]} 5. Nxf6+ {[%clk 0:02:52]}  exf6 {[%clk 0:02:56]} 6. c3 {[%clk 0:02:52]}  Bd6 {[%clk 0:02:57]} 7. Bd3 {[%clk 0:02:52]}  O-O {[%clk 0:02:57]} 8. Ne2 {[%clk 0:02:53]}  Re8 {[%clk 0:02:58]} 9. Qc2 {[%clk 0:02:52]}  h5 {[%clk 0:02:58]} 10. O-O {[%clk 0:02:48]}  h4 {[%clk 0:02:58]} 11. h3 {[%clk 0:02:28]}  Nd7 {[%clk 0:02:58]} 12. Kh1 {[%clk 0:02:19]}  Nf8 {[%clk 0:02:56]} 13. Ng1 {[%clk 0:02:16]}  Be6 {[%clk 0:02:42]} 14. f4 {[%clk 0:01:59]}  c5 {[%clk 0:02:02]} 15. Nf3 {[%clk 0:01:59]}  cxd4 {[%clk 0:02:01]} 16. Nxd4 {[%clk 0:01:58]}  a6 {[%clk 0:01:40]} 17. Qf2 {[%clk 0:01:34]}  Bc5 {[%clk 0:01:26]} 18. Be3 {[%clk 0:01:32]}  Bxd4 {[%clk 0:01:22]} 19. Bxd4 {[%clk 0:01:31]}  f5 {[%clk 0:01:22]} 20. Rae1 {[%clk 0:01:19]}  Ng6 {[%clk 0:01:22]} 21. Kh2 {[%clk 0:00:57]}  Qd5 {[%clk 0:01:19]} 22. a3 {[%clk 0:00:45]}  Qc6 {[%clk 0:01:19]} 23. g3 {[%clk 0:00:40]}  hxg3+ {[%clk 0:01:02]} 24. Qxg3 {[%clk 0:00:41]}  Bc4 {[%clk 0:01:02]} 25. Rg1 {[%clk 0:00:14]}  Bxd3 {[%clk 0:01:01]} 26. Qxd3 {[%clk 0:00:14]}  Rxe1 {[%clk 0:00:59]} 27. Rxe1 {[%clk 0:00:12]}  Nxf4 {[%clk 0:00:55]} 28. Qg3 {[%clk 0:00:11]}  Ng6 {[%clk 0:00:56]} 29. h4 {[%clk 0:00:10]}  Re8 {[%clk 0:00:55]} 30. h5 {[%clk 0:00:01]}  Rxe1 {[%clk 0:00:55]} 31. Qxe1 {[%clk 0:00:02]}  Nf4 {[%clk 0:00:50]} 32. Qf2 {[%clk 0:00:02]}  Qh6 {[%clk 0:00:46]} 33. Be3 {[%clk 0:00:02]}  Qxh5+ {[%clk 0:00:46]} 34. Kg1 {[%clk 0:00:02]}  Qg4+ {[%clk 0:00:43]} 35. Kh2 {[%clk 0:00:02]}  Nd3 {[%clk 0:00:34]} 36. Qg3 {[%clk 0:00:01]}  Qxg3+ {[%clk 0:00:31]} 37. Kxg3 {[%clk 0:00:02]}  f4+ {[%clk 0:00:32]} 38. Bxf4 {[%clk 0:00:03]}  Nxf4 {[%clk 0:00:33]} 39. Kxf4 {[%clk 0:00:04]}  Kf8 {[%clk 0:00:33]} 40. Ke5 {[%clk 0:00:04]}  Ke7 {[%clk 0:00:33]} 41. c4 {[%clk 0:00:05]}  f6+ {[%clk 0:00:34]} 42. Kf5 {[%clk 0:00:05]}  Kf7 {[%clk 0:00:35]} 43. b4 {[%clk 0:00:05]}  g6+ {[%clk 0:00:35]} 44. Kf4 {[%clk 0:00:05]}  Ke6 {[%clk 0:00:35]} 45. a4 {[%clk 0:00:06]}  a5 {[%clk 0:00:32]} 46. b5 {[%clk 0:00:02]}  Kd6 {[%clk 0:00:32]} 47. Ke4 {[%clk 0:00:02]}  Kc5 {[%clk 0:00:32]} 48. Kd3 {[%clk 0:00:02]}  b6 {[%clk 0:00:33]} 0-1


[Site "https://www.chess.com"]

[Event "Titled Tuesday Blitz October 04 Late 2022"]
[White "Barria Zuniga, Daniel"]
[Black "Kozak, Adam"]
[WhiteFideId "3400816"]
[BlackFideId "753246"]
[WhiteElo "2414"]
[BlackElo "2459"]
[Result "1/2-1/2"]
[Round "10"]
[TimeControl "180+1"]
[Date "2022.10.04"]
[WhiteClock "0:00:02"]
[BlackClock "0:00:02"]

1. d4 {[%clk 0:03:00]}  Nf6 {[%clk 0:02:59]} 2. c4 {[%clk 0:03:01]}  e6 {[%clk 0:02:59]} 3. Nf3 {[%clk 0:03:00]}  d5 {[%clk 0:02:59]} 4. Nc3 {[%clk 0:03:00]}  Nbd7 {[%clk 0:02:58]} 5. c5 {[%clk 0:02:59]}  b6 {[%clk 0:02:56]} 6. c6 {[%clk 0:02:59]}  Nb8 {[%clk 0:02:55]} 7. Qa4 {[%clk 0:02:59]}  a6 {[%clk 0:02:49]} 8. Bg5 {[%clk 0:02:34]}  Be7 {[%clk 0:02:42]} 9. e3 {[%clk 0:02:32]}  O-O {[%clk 0:02:42]} 10. Rc1 {[%clk 0:02:29]}  h6 {[%clk 0:02:41]} 11. Bxf6 {[%clk 0:02:27]}  Bxf6 {[%clk 0:02:42]} 12. Bd3 {[%clk 0:02:26]}  Qd6 {[%clk 0:01:53]} 13. Ne2 {[%clk 0:02:08]}  a5 {[%clk 0:01:11]} 14. O-O {[%clk 0:02:06]}  Na6 {[%clk 0:01:11]} 15. a3 {[%clk 0:02:04]}  Qe7 {[%clk 0:01:09]} 16. Bb1 {[%clk 0:01:59]}  g6 {[%clk 0:01:07]} 17. Rfe1 {[%clk 0:01:54]}  Rb8 {[%clk 0:01:04]} 18. e4 {[%clk 0:01:49]}  b5 {[%clk 0:01:03]} 19. Qxa5 {[%clk 0:01:47]}  dxe4 {[%clk 0:00:57]} 20. Bxe4 {[%clk 0:01:46]}  Bg7 {[%clk 0:00:53]} 21. Bd3 {[%clk 0:01:40]}  Rb6 {[%clk 0:00:20]} 22. Bxb5 {[%clk 0:01:35]}  Qd6 {[%clk 0:00:20]} 23. Nc3 {[%clk 0:01:31]}  Rd8 {[%clk 0:00:07]} 24. Rcd1 {[%clk 0:01:19]}  Nb8 {[%clk 0:00:04]} 25. Ne5 {[%clk 0:00:52]}  Qe7 {[%clk 0:00:01]} 26. d5 {[%clk 0:00:34]}  Bxe5 {[%clk 0:00:01]} 27. Rxe5 {[%clk 0:00:34]}  Qf6 {[%clk 0:00:01]} 28. Rde1 {[%clk 0:00:33]}  Qg7 {[%clk 0:00:01]} 29. Qa7 {[%clk 0:00:31]}  f6 {[%clk 0:00:01]} 30. Rxe6 {[%clk 0:00:30]}  Bxe6 {[%clk 0:00:01]} 31. dxe6 {[%clk 0:00:30]}  Qe7 {[%clk 0:00:01]} 32. a4 {[%clk 0:00:28]}  Nxc6 {[%clk 0:00:01]} 33. Bxc6 {[%clk 0:00:21]}  Rxc6 {[%clk 0:00:02]} 34. a5 {[%clk 0:00:19]}  Rxe6 {[%clk 0:00:02]} 35. Rxe6 {[%clk 0:00:14]}  Qxe6 {[%clk 0:00:03]} 36. g3 {[%clk 0:00:15]}  Qc6 {[%clk 0:00:03]} 37. Qe3 {[%clk 0:00:13]}  Re8 {[%clk 0:00:03]} 38. Qd2 {[%clk 0:00:10]}  h5 {[%clk 0:00:03]} 39. h4 {[%clk 0:00:08]}  Kg7 {[%clk 0:00:04]} 40. b4 {[%clk 0:00:06]}  Re7 {[%clk 0:00:02]} 41. b5 {[%clk 0:00:05]}  Qd7 {[%clk 0:00:01]} 42. Qb2 {[%clk 0:00:04]}  Qf5 {[%clk 0:00:02]} 43. a6 {[%clk 0:00:04]}  Qc5 {[%clk 0:00:02]} 44. Qb3 {[%clk 0:00:02]}  Re8 {[%clk 0:00:02]} 45. Nd5 {[%clk 0:00:02]}  Re1+ {[%clk 0:00:02]} 46. Kg2 {[%clk 0:00:02]}  Qc1 {[%clk 0:00:02]} 47. Qf3 {[%clk 0:00:02]}  Rg1+ {[%clk 0:00:02]} 48. Kh2 {[%clk 0:00:02]}  f5 {[%clk 0:00:02]} 49. Qe2 {[%clk 0:00:01]}  Rh1+ {[%clk 0:00:02]} 50. Kg2 {[%clk 0:00:02]}  Rg1+ {[%clk 0:00:03]} 51. Kh2 {[%clk 0:00:02]}  Rh1+ {[%clk 0:00:02]} 52. Kg2 {[%clk 0:00:02]}  Rg1+ {[%clk 0:00:02]} 53. Kh2 {[%clk 0:00:02]} 1/2-1/2


[Site "https://www.chess.com"]

[Event "Titled Tuesday Blitz October 04 Late 2022"]
[White "Jeet, Jain"]
[Black "Bazeev, German"]
[WhiteFideId "5073022"]
[BlackFideId "24119350"]
[WhiteElo "2067"]
[BlackElo "2493"]
[Result "0-1"]
[Round "10"]
[TimeControl "180+1"]
[Date "2022.10.04"]
[WhiteClock "0:00:06"]
[BlackClock "0:00:52"]

1. Nf3 {[%clk 0:02:59]}  Nf6 {[%clk 0:02:52]} 2. b3 {[%clk 0:02:57]}  d5 {[%clk 0:02:52]} 3. Bb2 {[%clk 0:02:57]}  c6 {[%clk 0:02:53]} 4. e3 {[%clk 0:02:57]}  Bg4 {[%clk 0:02:54]} 5. Be2 {[%clk 0:02:55]}  Nbd7 {[%clk 0:02:54]} 6. d4 {[%clk 0:02:55]}  e6 {[%clk 0:02:53]} 7. Nbd2 {[%clk 0:02:55]}  Bd6 {[%clk 0:02:53]} 8. h3 {[%clk 0:02:54]}  Bf5 {[%clk 0:02:52]} 9. O-O {[%clk 0:02:54]}  h6 {[%clk 0:02:52]} 10. c4 {[%clk 0:02:49]}  a5 {[%clk 0:02:46]} 11. a3 {[%clk 0:02:47]}  O-O {[%clk 0:02:45]} 12. Ne5 {[%clk 0:02:41]}  Qe7 {[%clk 0:02:43]} 13. f4 {[%clk 0:02:39]}  Ne4 {[%clk 0:02:42]} 14. Nxe4 {[%clk 0:02:38]}  Bxe4 {[%clk 0:02:43]} 15. Bd3 {[%clk 0:02:33]}  Bxd3 {[%clk 0:02:43]} 16. Qxd3 {[%clk 0:02:34]}  Bxe5 {[%clk 0:02:37]} 17. fxe5 {[%clk 0:02:22]}  a4 {[%clk 0:02:36]} 18. cxd5 {[%clk 0:02:17]}  cxd5 {[%clk 0:02:36]} 19. b4 {[%clk 0:02:18]}  f5 {[%clk 0:02:31]} 20. Rac1 {[%clk 0:02:00]}  Nb6 {[%clk 0:02:30]} 21. Bc3 {[%clk 0:01:44]}  Nc4 {[%clk 0:02:29]} 22. Be1 {[%clk 0:01:43]}  b5 {[%clk 0:02:29]} 23. Bg3 {[%clk 0:01:34]}  Rac8 {[%clk 0:02:27]} 24. Kh1 {[%clk 0:01:27]}  Rc6 {[%clk 0:02:25]} 25. Bh2 {[%clk 0:01:21]}  Rcc8 {[%clk 0:02:16]} 26. Rc2 {[%clk 0:01:15]}  g5 {[%clk 0:02:09]} 27. Rcf2 {[%clk 0:01:09]}  Qh7 {[%clk 0:02:07]} 28. g4 {[%clk 0:01:02]}  f4 {[%clk 0:02:06]} 29. Qxh7+ {[%clk 0:00:52]}  Kxh7 {[%clk 0:02:07]} 30. exf4 {[%clk 0:00:51]}  Nxa3 {[%clk 0:02:08]} 31. f5 {[%clk 0:00:44]}  Nc4 {[%clk 0:02:05]} 32. h4 {[%clk 0:00:40]}  Ne3 {[%clk 0:02:00]} 33. Rg1 {[%clk 0:00:35]}  exf5 {[%clk 0:01:59]} 34. gxf5 {[%clk 0:00:33]}  Rxf5 {[%clk 0:02:00]} 35. Re2 {[%clk 0:00:28]}  Nf1 {[%clk 0:01:59]} 36. e6 {[%clk 0:00:24]}  Nxh2 {[%clk 0:01:55]} 37. Kxh2 {[%clk 0:00:25]}  Kg7 {[%clk 0:01:52]} 38. e7 {[%clk 0:00:21]}  Kf7 {[%clk 0:01:52]} 39. Rge1 {[%clk 0:00:21]}  Re8 {[%clk 0:01:51]} 40. Kg3 {[%clk 0:00:19]}  Rf4 {[%clk 0:01:37]} 41. hxg5 {[%clk 0:00:19]}  hxg5 {[%clk 0:01:38]} 42. Re5 {[%clk 0:00:16]}  Re4 {[%clk 0:01:30]} 43. R1xe4 {[%clk 0:00:15]}  dxe4 {[%clk 0:01:31]} 44. Rxb5 {[%clk 0:00:15]}  Rxe7 {[%clk 0:01:30]} 45. Kf2 {[%clk 0:00:12]}  Ra7 {[%clk 0:01:30]} 46. Rxg5 {[%clk 0:00:11]}  a3 {[%clk 0:01:30]} 47. Rg1 {[%clk 0:00:11]}  a2 {[%clk 0:01:30]} 48. Ra1 {[%clk 0:00:11]}  Ke6 {[%clk 0:01:31]} 49. Ke3 {[%clk 0:00:10]}  Kd5 {[%clk 0:01:31]} 50. b5 {[%clk 0:00:10]}  Ra3+ {[%clk 0:01:31]} 51. Kd2 {[%clk 0:00:10]}  Rh3 {[%clk 0:01:23]} 52. Kc2 {[%clk 0:00:07]}  Kc4 {[%clk 0:01:16]} 53. Rxa2 {[%clk 0:00:06]}  Rh2+ {[%clk 0:01:15]} 54. Kb1 {[%clk 0:00:06]}  Rh1+ {[%clk 0:00:53]} 55. Kc2 {[%clk 0:00:06]}  e3 {[%clk 0:00:52]} 0-1


[Site "https://www.chess.com"]

[Event "Titled Tuesday Blitz October 04 Late 2022"]
[White "Jobava, Baadur"]
[Black "Rasulov, Vugar"]
[WhiteFideId "13601520"]
[BlackFideId "13402390"]
[WhiteElo "2582"]
[BlackElo "2509"]
[Result "0-1"]
[Round "10"]
[TimeControl "180+1"]
[Date "2022.10.04"]
[WhiteClock "0:00:02"]
[BlackClock "0:00:14"]

1. b3 {[%clk 0:03:00]}  a5 {[%clk 0:02:59]} 2. Bb2 {[%clk 0:03:01]}  a4 {[%clk 0:02:59]} 3. e3 {[%clk 0:03:02]}  Nf6 {[%clk 0:02:59]} 4. Nf3 {[%clk 0:03:02]}  g6 {[%clk 0:02:59]} 5. Bxf6 {[%clk 0:02:48]}  exf6 {[%clk 0:03:00]} 6. Nc3 {[%clk 0:02:49]}  a3 {[%clk 0:02:59]} 7. g3 {[%clk 0:02:46]}  Bg7 {[%clk 0:02:57]} 8. Bg2 {[%clk 0:02:47]}  O-O {[%clk 0:02:57]} 9. O-O {[%clk 0:02:47]}  f5 {[%clk 0:02:57]} 10. d4 {[%clk 0:02:48]}  d6 {[%clk 0:02:57]} 11. Ne2 {[%clk 0:02:48]}  Nd7 {[%clk 0:02:56]} 12. c4 {[%clk 0:02:47]}  Nf6 {[%clk 0:02:57]} 13. b4 {[%clk 0:02:44]}  Ne4 {[%clk 0:02:53]} 14. Qb3 {[%clk 0:02:43]}  c5 {[%clk 0:02:45]} 15. bxc5 {[%clk 0:02:42]}  dxc5 {[%clk 0:02:45]} 16. Rad1 {[%clk 0:02:40]}  Qa5 {[%clk 0:02:44]} 17. Rd3 {[%clk 0:02:28]}  Ra7 {[%clk 0:02:25]} 18. Rb1 {[%clk 0:02:23]}  Re8 {[%clk 0:02:23]} 19. Qb6 {[%clk 0:02:16]}  Qxb6 {[%clk 0:02:17]} 20. Rxb6 {[%clk 0:02:17]}  cxd4 {[%clk 0:02:17]} 21. exd4 {[%clk 0:02:18]}  Ra4 {[%clk 0:02:03]} 22. c5 {[%clk 0:02:11]}  Be6 {[%clk 0:01:46]} 23. Nc1 {[%clk 0:01:57]}  Bd5 {[%clk 0:01:42]} 24. h4 {[%clk 0:01:48]}  h6 {[%clk 0:01:42]} 25. Nb3 {[%clk 0:01:44]}  Rc4 {[%clk 0:01:39]} 26. Na5 {[%clk 0:01:17]}  Ra4 {[%clk 0:01:29]} 27. Nb3 {[%clk 0:01:12]}  Kf8 {[%clk 0:01:27]} 28. Nfd2 {[%clk 0:01:07]}  Rd8 {[%clk 0:01:19]} 29. Bf3 {[%clk 0:00:43]}  Bc6 {[%clk 0:01:03]} 30. Rxc6 {[%clk 0:00:39]}  Nxd2 {[%clk 0:00:56]} 31. Rc7 {[%clk 0:00:29]}  Nxf3+ {[%clk 0:00:41]} 32. Rxf3 {[%clk 0:00:29]}  Rb4 {[%clk 0:00:42]} 33. Rd3 {[%clk 0:00:27]}  Bxd4 {[%clk 0:00:32]} 34. Kg2 {[%clk 0:00:27]}  Bf6 {[%clk 0:00:29]} 35. Rd6 {[%clk 0:00:17]}  Be7 {[%clk 0:00:24]} 36. Rb6 {[%clk 0:00:14]}  Bxc5 {[%clk 0:00:16]} 37. Rxb4 {[%clk 0:00:14]}  Bxb4 {[%clk 0:00:17]} 38. Rxb7 {[%clk 0:00:14]}  Be7 {[%clk 0:00:18]} 39. Na5 {[%clk 0:00:10]}  Rc8 {[%clk 0:00:18]} 40. Ra7 {[%clk 0:00:09]}  Rc2 {[%clk 0:00:18]} 41. Kf3 {[%clk 0:00:09]}  Rxa2 {[%clk 0:00:17]} 42. Ra8+ {[%clk 0:00:05]}  Kg7 {[%clk 0:00:17]} 43. Nb3 {[%clk 0:00:06]}  Rb2 {[%clk 0:00:17]} 44. Nd4 {[%clk 0:00:05]}  Bc5 {[%clk 0:00:17]} 45. Ne2 {[%clk 0:00:05]}  a2 {[%clk 0:00:17]} 46. Ra5 {[%clk 0:00:05]}  g5 {[%clk 0:00:16]} 47. hxg5 {[%clk 0:00:04]}  hxg5 {[%clk 0:00:17]} 48. g4 {[%clk 0:00:03]}  f4 {[%clk 0:00:15]} 49. Ra4 {[%clk 0:00:02]}  Rb3+ {[%clk 0:00:13]} 50. Ke4 {[%clk 0:00:02]}  Ra3 {[%clk 0:00:14]} 0-1


[Site "https://www.chess.com"]